Cogmind - Beta 13 @@@ ROGUE MODE // 2024.04.22 @ 00:18:17 Player: ThatBishHoly Result: Destroyed by Y-45 Defender with Heavy Assault Rifle Performance ------------- Evolutions (1) 500 Regions Visited (3) 600 Robots Destroyed (14) 70 Value Destroyed (296) 296 Prototype IDs (1) 20 Alien Tech Used (0) 0 Bonus (0) 0 TOTAL SCORE: 1486 Bonus ------- None Cogmind --------- Core Integrity 0/400 Matter 188/300 Energy 460/460 System Corruption 0% Temperature Warm (180) Movement Treading (160) Location -9/Storage Parts ------- > --- POWER (2) -------- Heavy Ion Engine Heavy Ion Engine > --- PROPULSION (2) --- Light Treads Light Treads > --- UTILITY (2) ------ Improved Signal Interpreter Hardlight Generator > --- WEAPON (3) ------- Beam Cannon > --- INVENTORY (5) ---- Light Ion Engine Machine Analyzer Improved Signal Interpreter Hardlight Generator Mining Laser Peak State ------------ > --- POWER ------------ Heavy Ion Engine Heavy Ion Engine > --- PROPULSION ------- Light Treads Light Treads > --- UTILITY ---------- Improved Signal Interpreter Hardlight Generator > --- WEAPON ----------- EM Pulse Gun Beam Cannon Beam Cannon > --- INVENTORY -------- Light Ion Engine Machine Analyzer Improved Signal Interpreter Hardlight Generator Mining Laser [Rating: 18] Favorites ----------- Power Light Ion Engine Engine Light Ion Engine Propulsion Light Treads Treads Light Treads Leg Aluminum Leg Utility Small Storage Unit Device Hardlight Generator Storage Small Storage Unit Processor Improved Signal Interpreter Weapon EM Pulse Gun Energy Gun EM Pulse Gun Energy Cannon Beam Cannon Build | -11 -10 -9 -9 ------- Run | Yrd Mat Mat Sto Slots Evolved 2 | . . 2 . Power 1 | . . 1 . Propulsion . | . . . . Utility . | . . . . Weapon 1 | . . 1 . Parts Attached 22 | 8 5 7 2 Power 6 | 1 1 2 2 Engine 6 | 1 1 2 2 Core . | . . . . Reactor . | . . . . Propulsion 8 | 4 2 2 . Treads 6 | 2 2 2 . Leg 2 | 2 . . . Wheel . | . . . . Hover . | . . . . Flight . | . . . . Utility 4 | 1 1 2 . Device 2 | . 1 1 . Storage 1 | 1 . . . Processor 1 | . . 1 . Hackware . | . . . . Protection . | . . . . Artifact . | . . . . Weapon 4 | 2 1 1 . Energy Gun 2 | 2 . . . Energy Cannon 2 | . 1 1 . Ballistic Gun . | . . . . Ballistic Cannon . | . . . . Launcher . | . . . . Special Weapon . | . . . . Impact Weapon . | . . . . Slashing Weapon . | . . . . Piercing Weapon . | . . . . Special Melee Weapon . | . . . . Unidentified Prototypes 1 | . . . 1 Parts Lost 1 | . . . 1 Power . | . . . . Propulsion . | . . . . Utility . | . . . . Weapon 1 | . . . 1 Highest Loss Streak 1 | . . . 1 To Critical Strikes . | . . . . Average Slot Usage (%) 89 | . 89 88 91 Engine 14 | . 14 11 22 Treads 22 | . 23 22 22 Device 9 | . 8 10 11 Storage 5 | . 14 . . Processor 6 | . . 10 11 Energy Gun 13 | . 17 11 8 Energy Cannon 16 | . 10 22 16 Naked Turns . | . . . . Heaviest Build 29 | 12 16 21 29 Greatest Support 40 | 40 40 40 40 Greatest Overweight (x) 5 | . 5 . . Average Overweight (x) . | . . . . Largest Inventory Capacity 8 | 8 8 8 5 Average Capacity 7 | 7 8 5 5 Most Carried 8 | 5 8 8 5 Average Carried 4 | 3 6 4 4 Final Capacity 8 | 8 8 5 5 Final Carried 8 | 5 8 5 5 Class Distribution -------------------- 79% | Mutant 20% | Tank Dominant Class ---------------- Mutant | -10/Materials Tank | -9/Materials Mutant | -9/Storage Resources | -11 -10 -9 -9 ----------- Run | Yrd Mat Mat Sto Matter Collected 259 | 204 . 55 . Remotely . | . . . . Salvage Created 397 | . 46 351 . Parts 26 | 4 1 21 . Haulers Intercepted . | . . . . Recyclers Shooed 1 | 1 . . . Parts Field Recycled . | . . . . Retrieved Matter . | . . . . Parts Self-Destructed . | . . . . Prevented . | . . . . Kills | -11 -10 -9 -9 ------- Run | Yrd Mat Mat Sto Combat Hostiles Destroyed 9 | . 1 8 . Guns 5 | . . 5 . Cannons 4 | . 1 3 . Classes Destroyed 7 | 2 1 4 . Worker 1 | 1 . . . Tunneler 3 | 3 . . . Watcher 1 | . . 1 . Swarmer 3 | . . 3 . Grunt 3 | . 1 2 . Brawler 1 | . . 1 . Sentry 2 | . . 2 . Best Kill Streak 5 | 1 1 5 . Combat Bots Only 5 | . 1 5 . Max Kills in Single Turn 1 | 1 1 1 . Gunslinging . | . . . . Exploded . | . . . . Melee . | . . . . Uniques/NPCs Destroyed . | . . . . Combat | -11 -10 -9 -9 -------- Run | Yrd Mat Mat Sto Hostile Shots Fired 64 | . 8 40 16 Missed 18 | . 2 14 2 Damage Taken 875 | . 105 596 174 Core 451 | . 43 386 22 Absorbed by Shields 64 | . . . 64 Core Remaining (%) 91 | 100 82 . . Volleys Fired 37 | 10 2 16 9 Largest 3 | 2 2 3 2 Hottest 160 | 90 100 160 100 Shots Fired 73 | 11 4 48 10 Gun 30 | 11 2 16 1 Cannon 43 | . 2 32 9 Launcher . | . . . . Special . | . . . . Kinetic . | . . . . Thermal 53 | 10 2 32 9 Explosive . | . . . . Electromagnetic 20 | 1 2 16 1 Robot Hit Streak 5 | 3 5 5 3 Robot Miss Streak 4 | 2 . 4 2 Penetration Max . | . . . . Secondary Targets . | . . . . Shots Hit Robots 36 | 7 4 19 6 Core Hits 21 | 7 1 12 1 Critical Kills . | . . . . Critical Parts Destroyed . | . . . . Critical Strikes . | . . . . Melee Attacks . | . . . . Impact . | . . . . Slashing . | . . . . Piercing . | . . . . Sneak Attacks . | . . . . Combat Hostiles . | . . . . Follow-up Attacks . | . . . . Damage Inflicted 677 | 200 63 332 82 Guns 231 | 89 27 104 11 Cannons 333 | . 34 228 71 Explosions . | . . . . Melee . | . . . . Ramming 113 | 111 2 . . Kinetic . | . . . . Thermal 407 | 74 34 228 71 Explosive . | . . . . Electromagnetic 157 | 15 27 104 11 Impact . | . . . . Slashing . | . . . . Piercing . | . . . . Highest Corruption . | . . . . Average Corruption . | . . . . Corruption Purged . | . . . . Corruption Blocked . | . . . . Overload Shots . | . . . . Overflow Damage . | . . . . Projectiles . | . . . . Explosions . | . . . . Melee . | . . . . Knockbacks 1 | 1 . . . Impact 1 | 1 . . . Kinetic . | . . . . Secondary . | . . . . Self-Inflicted Damage . | . . . . Shots . | . . . . Rammed 33 | 32 1 . . Targets Rammed 36 | 35 1 . . Kicked . | . . . . Crushed 3 | 3 . . . Highest Temperature 675 | 70 78 675 252 Average Temperature 190 | 29 40 254 151 Received Heat Transfer 184 | . 45 72 67 Effects 18 | . . 18 . Shutdowns 4 | . . 4 . Energy Bleed 3 | . . 3 . Matter Decay 1 | . . 1 . Damage (major) 6 | . . 6 . Damage (core) 4 | . . 4 . Siege Activations . | . . . . Robots Corrupted . | . . . . Combat Hostiles . | . . . . Parts Fried . | . . . . Impact Corruptions . | . . . . Robots Melted . | . . . . Combat Hostiles . | . . . . Parts Melted 1 | . . 1 . Heat Transferred 925 | 222 74 481 148 Parts Sabotaged . | . . . . Parts Stolen . | . . . . Parts Stripped . | . . . . Power Chain Reactions . | . . . . Alert | -11 -10 -9 -9 ------- Run | Yrd Mat Mat Sto Peak Influence 284 | 10 48 284 55 Initial 35 | . 3 20 35 Average 16 | 2 11 61 36 Maximum Alert Level 1 | . . 1 . Low Security (%) 98 | 100 100 92 100 Level 1 1 | . . 7 . Level 2 . | . . . . Level 3 . | . . . . Level 4 . | . . . . Level 5 . | . . . . High Security . | . . . . Max Security . | . . . . Squads Dispatched 2 | . 1 1 . Investigation 1 | . . 1 . Extermination . | . . . . Reinforcement 1 | . 1 . . Assault . | . . . . Garrison . | . . . . Intercept . | . . . . Searches Triggered . | . . . . Construction Impeded . | . . . . Haulers Reinforced . | . . . . Active Scanning Responses . | . . . . Cargo Convoy Interrupts . | . . . . Stealth | -11 -10 -9 -9 --------- Run | Yrd Mat Mat Sto Distress Signals 1 | . . 1 . Communications Jammed . | . . . . Distress Signals . | . . . . Times Spotted 20 | . 7 11 2 Peak Tracking Total 5 | . 5 3 2 Tactical Retreats . | . . . . Traps | -11 -10 -9 -9 ------- Run | Yrd Mat Mat Sto Traps Triggered 3 | . 2 . 1 Indirectly . | . . . . Trap Hack Attempts . | . . . . Triggered . | . . . . Disarmed . | . . . . Reprogrammed 1 | . 1 . . Reused . | . . . . Traps Extracted . | . . . . Installed . | . . . . Triggered . | . . . . Machines | -11 -10 -9 -9 ---------- Run | Yrd Mat Mat Sto Machines Disabled . | . . . . Max in Single Turn . | . . . . Machines Repaired . | . . . . Machines Dismantled . | . . . . Machines Sabotaged . | . . . . Overloaded Fab Kills . | . . . . Hacking | -11 -10 -9 -9 --------- Run | Yrd Mat Mat Sto Machines Accessed 4 | . 2 2 . Terminals 2 | . 2 . . Fabricators . | . . . . Repair Stations . | . . . . Recycling Units 2 | . . 2 . Scanalyzers . | . . . . Garrison Access . | . . . . Total Hacks 15 | . 7 8 . Successful 6 | . 3 3 . Failed 9 | . 4 5 . Catastrophic . | . . . . Database Lockouts . | . . . . Manual 1 | . . 1 . Terminals 7 | . 7 . . Fabricators . | . . . . Repair Stations . | . . . . Recycling Units 8 | . . 8 . Scanalyzers . | . . . . Garrison Access . | . . . . Terminal Hacks 3 | . 3 . . Locate Traps 1 | . 1 . . Reprogram Traps 1 | . 1 . . Hauler Manifests 1 | . 1 . . Fabricator Hacks . | . . . . Repair Station Hacks . | . . . . Recycling Unit Hacks 2 | . . 2 . Report Inventory 2 | . . 2 . Scanalyzer . | . . . . Garrison Access Hacks . | . . . . Unauthorized Hacks 1 | . . 1 . Terminals . | . . . . Fabricators . | . . . . Repair Stations . | . . . . Recycling Units 1 | . . 1 . Reject 1 | . . 1 . Scanalyzers . | . . . . Garrison Access . | . . . . Data Cores Recovered . | . . . . Used . | . . . . Hacking Detections 2 | . 1 1 . Full Trace Events 2 | . 1 1 . Feedback Events . | . . . . Feedback Blocked . | . . . . Robot Schematics Acquired . | . . . . Robots Built . | . . . . Authchips . | . . . . Time . | . . . . Total Robot Build Rating . | . . . . Part Schematics Acquired . | . . . . Parts Built . | . . . . Authchips . | . . . . Time . | . . . . Total Part Build Rating . | . . . . Parts Repaired . | . . . . Time . | . . . . Parts Recycled . | . . . . Recycled Matter . | . . . . Retrieved Matter . | . . . . Retrieved Components . | . . . . Parts Scanalyzed . | . . . . Part Schematics Acquired . | . . . . Parts Damaged . | . . . . Bothacking | -11 -10 -9 -9 ------------ Run | Yrd Mat Mat Sto Used RIF Installer . | . . . . Robots Hacked . | . . . . Non-combat . | . . . . Combat . | . . . . Robot Hacks Applied . | . . . . Relay Couplers Released . | . . . . Fabnet Peak Effective % . | . . . . Robots Rewired . | . . . . Allies Hacked . | . . . . Hacks Repelled . | . . . . Allies | -11 -10 -9 -9 -------- Run | Yrd Mat Mat Sto Total Allies . | . . . . Largest Group . | . . . . Highest-Rated Group . | . . . . Highest-Rated Ally . | . . . . Total Orders . | . . . . Ally Attacks . | . . . . Total Damage . | . . . . Kills . | . . . . Allies Corrupted . | . . . . Allies Melted . | . . . . Intel | -11 -10 -9 -9 ------- Run | Yrd Mat Mat Sto Robot Analysis Total . | . . . . Derelict Logs Recovered . | . . . . Drone Launches . | . . . . Drone Recoveries . | . . . . Exploration | -11 -10 -9 -9 ------------- Run | Yrd Mat Mat Sto Turns Passed 2284 | 1353 373 410 148 Spaces Moved 1297 | 788 219 212 78 Core 6 | 5 1 . . Treads 1281 | 773 218 212 78 Legs 10 | 10 . . . Wheels . | . . . . Hover . | . . . . Flight . | . . . . Fastest Speed 50 | 50 160 160 160 Average Speed 159 | 158 160 160 160 Slowest Speed 300 | 160 300 160 160 Overloaded Moves . | . . . . Propulsion Burnouts . | . . . . Robots Hopped . | . . . . Cave-ins Triggered . | . . . . Exploration Rate (%) 26 | 36 34 19 17 Regions Visited 3 Branch Regions 1 Pre-discovered Areas . | . . . . Known Exits Taken 1 | . . 1 . Unknown Exits Taken 2 | 1 1 . . Scrap Searched . | . . . . Spaces Dug . | . . . . Terrain Destroyed . | . . . . Melee . | . . . . Projectile . | . . . . AOE . | . . . . Terrain Rammed . | . . . . Walls Destroyed . | . . . . Machines Disabled . | . . . . Actions | -11 -10 -9 -9 --------- Run | Yrd Mat Mat Sto Total 1438 | 859 236 251 92 Wait 1 | . . 1 . Move 1294 | 787 218 211 78 Hop . | . . . . Pick Up 30 | 15 8 6 1 Fast Attach 1 | . . 1 . Attach 11 | 6 3 2 . Detach . | . . . . Swap 10 | 2 2 4 2 Drop 18 | 4 2 10 2 Fire 37 | 10 2 16 9 Melee . | . . . . Ram . | . . . . Kick . | . . . . Crush 36 | 35 1 . . Escape Stasis . | . . . . Rewire . | . . . . Trap . | . . . . Miscellaneous . | . . . . Route ------- -11/Scrapyard -10/Materials (discovered 2 exits: *Mat x2) -9/Materials -9/Storage History --------- Turn | Location | Event 4 | -11/Scrapyard | Discovered new exit (range 15) 1354 | -11/Scrapyard | Entered Materials 1355 | -10/Materials | Build established: Mutant 1574 | -10/Materials | Discovered new exit (range 5) 1700 | -10/Materials | Discovered new exit (range 16) 1727 | -10/Materials | Entered another Materials area 1727 | -9/Materials | Evolved 2 slots: Power x1, Weapon x1 2031 | -9/Materials | Discovered new exit (range 16) 2036 | -9/Materials | Build established: Tank 2110 | -9/Materials | Core integrity fell below 50% 2113 | -9/Materials | Core integrity fell below 20% 2115 | -9/Materials | Identified exit to Storage 2137 | -9/Materials | Entered Storage 2285 | -9/Storage | Destroyed by Y-45 Defender with Heavy Assault Rifle Last Messages --------------- 02137_ Dropped Lgt. Treads. 02138_ T-07 Excavator is excavating. 02156_ U-05 Engineer lays Concrete. 02157_ K-01 Serf collects debris. 02157_ U-05 Engineer lays Concrete. 02161_ K-01 Serf collects debris. 02173_ Acquired Prototype Engine. 02174_ Identified Hvy. Ion Engine. 02177_ Dropped Ion Engine. 02206_ Triggered Blade Trap. 02206_ Massive razor-sharp blades shoot up from within the floor. 02206_ Beam Cannon severed. 02217_ R-06 Scavenger collects Beam Cannon. 02255_ Critical hit (Burn: +26). 02257_ K-01 Serf collects debris. 02257_ EM Pulse Gun destroyed. 02266_ K-01 Serf collects debris. 02269_ Y-45 Defender IFF system glitched. 02271_ K-01 Serf collects debris. Map ----- +----------------------------------------------------+ | ?????????????????????????????????????????????????? | | ?????????????????????????????????????????????????? | | ?????????????????????????????????????????????????? | | ?????????????????????????????????????????????????? | | ?????????????????????????????????????????????????? | | ?????????????????????????????????????????????????? | | ?????????????????????????????????????????????????? | | ?????????????????????????????????????????????????? | | ?????????????????????????????????????????????????? | | ?????????????????????????#???????????????????????? | | ????????????????????##### #??????????????????????? | | ????????????????????# ??????????????????????? | | ????????????????????# "?????########?????????? | | ????????????????????# ""????#*** **#?????????? | | ????????????????????# """#??#** **#?????????? | | ????????????????????# #??# **#?????????? | | ????????????????????# """#??# #?????????? | | ????????????????????# k"""#??##" "###?????????? | | ????????????????????? """#??# T#????#####?? | | ??????????????????????? Y ????# ##????# #?? | | ???????????##############/#########+######### #### | | ????????? | | ????????? | | ????????? | | ??????????###############/#########+############## | | ?????????????????????# @ """ # #????????? | | ?????????????????????# = "Y" # """ #????????? | | ????????????????????#Y # """ #????????? | | ????????????????????## #^ """ #????????? | | ?????????????????????# """"" # """ #????????? | | ?????????????????????# """"" # """ #????????? | | ?????????????????????# """"" # #????????? | | ?????????????????????# # #????????? | | ?????????????????????#######???# #????????? | | ???????????????????????????????##########????????? | | ?????????????????????????????????????????????????? | | | | | | | | | | | | | | | | | | | | | | | | | | | | | +----------------------------------------------------+ Best States ------------- Heat Dissipation 28 Energy Generation 23 Energy Capacity 460 Matter Stores 300 Matter Capacity 300 Sight Range 16 Terrain Scan Density 10 Evasion (%) 45 Recoil Reduction 2 Item Schematics ----------------- None Robot Schematics ------------------ None Fabricated ------------ Nothing Alien Tech Used ----------------- None Achievements -------------- None Challenges ------------ None Game ------ Seed WeaponReactionLance Manual? 0 Play Time 00:15:59 Cumulative 11.7 hours Start 2024.04.22 @ 00:03:03 End 2024.04.22 @ 00:18:17 Sessions 1 Manual Loads 0 Difficulty Rogue Special Mode None Game No. 34 Rogue 34 Adventurer 0 Explorer 0 Win Type - Total 0 Types 0/0/0/0/0/0/0/0/0 Lore% 12 Gallery% 23 Achievement% 19 Wizard Run 0 Options --------- Layout 1 ASCII 0 Keyboard 0 Movement Arrows Keybinds 0 Fullscreen 1 Font 16/SmallcapsGlow Map View 50x40 Zoom Use 0% Tactical HUD 1 Map Filters NONE Filters NONE Steam SD RUN: ec4787fa-a5ba-4f59-9ba1-19d6d332c502